[Event "Titled Tuesday Blitz February 07 Early 2023"]
[White "Fajdetic, Hrvoje"]
[Black "Shubenkova, Veronika"]
[WhiteFideId "14501945"]
[BlackFideId "44124040"]
[WhiteElo "2151"]
[BlackElo "1960"]
[Result "1-0"]
[Round "05"]
[TimeControl "180+2"]
[Date "2023.02.07"]
[WhiteClock "0:00:19"]
[BlackClock "0:00:03"]

1. f4 {[%clk 0:02:54]}  d5 {[%clk 0:02:59]} 2. Nf3 {[%clk 0:02:54]}  e6 {[%clk 0:02:59]} 3. e3 {[%clk 0:02:54]}  Nf6 {[%clk 0:02:57]} 4. b3 {[%clk 0:02:54]}  Be7 {[%clk 0:02:54]} 5. Bb2 {[%clk 0:02:55]}  O-O {[%clk 0:02:54]} 6. Be2 {[%clk 0:02:55]}  c5 {[%clk 0:02:53]} 7. O-O {[%clk 0:02:54]}  Nc6 {[%clk 0:02:53]} 8. d3 {[%clk 0:02:54]}  b5 {[%clk 0:02:53]} 9. a4 {[%clk 0:02:53]}  b4 {[%clk 0:02:53]} 10. Qe1 {[%clk 0:02:52]}  a5 {[%clk 0:02:53]} 11. Nbd2 {[%clk 0:02:51]}  Bb7 {[%clk 0:02:52]} 12. Qg3 {[%clk 0:02:43]}  Qc7 {[%clk 0:02:48]} 13. Ne5 {[%clk 0:02:41]}  Rad8 {[%clk 0:02:43]} 14. Ng4 {[%clk 0:02:38]}  Nxg4 {[%clk 0:02:41]} 15. Qxg4 {[%clk 0:02:38]}  d4 {[%clk 0:02:41]} 16. e4 {[%clk 0:02:36]}  e5 {[%clk 0:02:41]} 17. f5 {[%clk 0:02:35]}  f6 {[%clk 0:02:40]} 18. Rf3 {[%clk 0:02:32]}  Rf7 {[%clk 0:02:39]} 19. Rh3 {[%clk 0:02:31]}  h6 {[%clk 0:02:34]} 20. Rxh6 {[%clk 0:02:27]}  Bd6 {[%clk 0:02:18]} 21. Nf3 {[%clk 0:01:41]}  Kf8 {[%clk 0:02:14]} 22. Rh7 {[%clk 0:01:29]}  Ke8 {[%clk 0:01:56]} 23. Qh5 {[%clk 0:01:23]}  Bf8 {[%clk 0:01:54]} 24. Nh4 {[%clk 0:01:22]}  Rd7 {[%clk 0:01:49]} 25. Ng6 {[%clk 0:01:15]}  Kd8 {[%clk 0:01:48]} 26. Rh8 {[%clk 0:01:13]}  Qd6 {[%clk 0:01:48]} 27. Qh7 {[%clk 0:01:08]}  Kc7 {[%clk 0:01:43]} 28. Qg8 {[%clk 0:01:04]}  Ne7 {[%clk 0:00:21]} 29. Qxf7 {[%clk 0:01:00]}  Nxg6 {[%clk 0:00:20]} 30. Qxg6 {[%clk 0:00:57]}  Be7 {[%clk 0:00:19]} 31. Qxg7 {[%clk 0:00:47]}  Bd8 {[%clk 0:00:19]} 32. Qg8 {[%clk 0:00:45]}  Re7 {[%clk 0:00:19]} 33. Rh7 {[%clk 0:00:38]}  Qd7 {[%clk 0:00:16]} 34. Rxe7 {[%clk 0:00:37]}  Bxe7 {[%clk 0:00:16]} 35. Bh5 {[%clk 0:00:36]}  Bc6 {[%clk 0:00:14]} 36. Bf7 {[%clk 0:00:34]}  Kb7 {[%clk 0:00:12]} 37. Bc1 {[%clk 0:00:32]}  Bd8 {[%clk 0:00:10]} 38. Be6 {[%clk 0:00:30]}  Qe7 {[%clk 0:00:10]} 39. Bh6 {[%clk 0:00:29]}  Kb6 {[%clk 0:00:09]} 40. Bf8 {[%clk 0:00:29]}  Qc7 {[%clk 0:00:09]} 41. Qf7 {[%clk 0:00:25]}  Qb8 {[%clk 0:00:08]} 42. Be7 {[%clk 0:00:25]}  Bc7 {[%clk 0:00:08]} 43. Bxf6 {[%clk 0:00:24]}  c4 {[%clk 0:00:08]} 44. Bxc4 {[%clk 0:00:23]}  Qa8 {[%clk 0:00:06]} 45. Qg7 {[%clk 0:00:22]}  Qe8 {[%clk 0:00:05]} 46. Be6 {[%clk 0:00:21]}  Qh5 {[%clk 0:00:05]} 47. Bxe5 {[%clk 0:00:20]}  Bd8 {[%clk 0:00:05]} 48. Bxd4+ {[%clk 0:00:20]}  Ka6 {[%clk 0:00:03]} 49. Bc4+ {[%clk 0:00:19]} 1-0


[Site "https://www.chess.com"]

[Event "Titled Tuesday Blitz February 07 Early 2023"]
[White "Smietanska, Wiktoria"]
[Black "Maung, Maung Kyaw Zaw Hein"]
[WhiteFideId "21869359"]
[BlackFideId "13001698"]
[WhiteElo "1936"]
[BlackElo "2119"]
[Result "1-0"]
[Round "05"]
[TimeControl "180+2"]
[Date "2023.02.07"]
[WhiteClock "0:00:02"]
[BlackClock "0:01:13"]

1. c4 {[%clk 0:02:48]}  c6 {[%clk 0:02:59]} 2. Nf3 {[%clk 0:02:46]}  d5 {[%clk 0:02:59]} 3. e3 {[%clk 0:02:46]}  Nf6 {[%clk 0:03:00]} 4. Nc3 {[%clk 0:02:46]}  e6 {[%clk 0:02:58]} 5. b3 {[%clk 0:02:46]}  Nbd7 {[%clk 0:02:58]} 6. Bb2 {[%clk 0:02:45]}  Bd6 {[%clk 0:02:57]} 7. d4 {[%clk 0:02:44]}  O-O {[%clk 0:02:57]} 8. Bd3 {[%clk 0:02:43]}  b6 {[%clk 0:02:58]} 9. O-O {[%clk 0:02:42]}  Bb7 {[%clk 0:02:58]} 10. e4 {[%clk 0:02:35]}  e5 {[%clk 0:02:54]} 11. cxd5 {[%clk 0:02:17]}  cxd5 {[%clk 0:02:52]} 12. exd5 {[%clk 0:02:08]}  Nxd5 {[%clk 0:02:38]} 13. Nxd5 {[%clk 0:01:28]}  Bxd5 {[%clk 0:02:28]} 14. dxe5 {[%clk 0:01:27]}  Bxf3 {[%clk 0:02:27]} 15. Qxf3 {[%clk 0:01:24]}  Nxe5 {[%clk 0:02:22]} 16. Bxe5 {[%clk 0:00:56]}  Bxe5 {[%clk 0:02:22]} 17. Bxh7+ {[%clk 0:00:29]}  Kxh7 {[%clk 0:02:19]} 18. Qh5+ {[%clk 0:00:28]}  Kg8 {[%clk 0:02:19]} 19. Qxe5 {[%clk 0:00:28]}  Re8 {[%clk 0:02:19]} 20. Qb5 {[%clk 0:00:18]}  Rc8 {[%clk 0:02:19]} 21. Rfd1 {[%clk 0:00:15]}  Qf6 {[%clk 0:02:18]} 22. Rac1 {[%clk 0:00:10]}  Rcd8 {[%clk 0:02:03]} 23. Rxd8 {[%clk 0:00:09]}  Rxd8 {[%clk 0:02:02]} 24. h3 {[%clk 0:00:04]}  Qb2 {[%clk 0:02:00]} 25. Re1 {[%clk 0:00:02]}  Qf6 {[%clk 0:01:52]} 26. Re8+ {[%clk 0:00:01]}  Rxe8 {[%clk 0:01:52]} 27. Qxe8+ {[%clk 0:00:02]}  Kh7 {[%clk 0:01:52]} 28. Qe4+ {[%clk 0:00:02]}  g6 {[%clk 0:01:52]} 29. Qa4 {[%clk 0:00:02]}  a5 {[%clk 0:01:52]} 30. Qa3 {[%clk 0:00:01]}  Qd4 {[%clk 0:01:51]} 31. g3 {[%clk 0:00:02]}  Kg7 {[%clk 0:01:48]} 32. Kg2 {[%clk 0:00:01]}  Qe4+ {[%clk 0:01:46]} 33. Kh2 {[%clk 0:00:01]}  Qd4 {[%clk 0:01:47]} 34. Kg1 {[%clk 0:00:01]}  Qd1+ {[%clk 0:01:47]} 35. Kg2 {[%clk 0:00:02]}  Qd4 {[%clk 0:01:42]} 36. h4 {[%clk 0:00:02]}  Kg8 {[%clk 0:01:34]} 37. Qa4 {[%clk 0:00:02]}  Qd5+ {[%clk 0:01:32]} 38. Kg1 {[%clk 0:00:02]}  Qe5 {[%clk 0:01:27]} 39. Kg2 {[%clk 0:00:02]}  Qd5+ {[%clk 0:01:26]} 40. Kg1 {[%clk 0:00:02]}  Qe4 {[%clk 0:01:13]} 41. Qxe4 {[%clk 0:00:02]} 1-0


[Site "https://www.chess.com"]

[Event "Titled Tuesday Blitz February 07 Early 2023"]
[White "Sanchez, Robert"]
[Black "Onslow, Alfie"]
[WhiteFideId "2034360"]
[BlackFideId "436976"]
[WhiteElo "1966"]
[BlackElo "2157"]
[Result "1-0"]
[Round "05"]
[TimeControl "180+2"]
[Date "2023.02.07"]
[WhiteClock "0:01:57"]
[BlackClock "0:00:18"]

1. e4 {[%clk 0:03:00]}  c5 {[%clk 0:02:57]} 2. Nf3 {[%clk 0:03:01]}  Nc6 {[%clk 0:02:55]} 3. d4 {[%clk 0:03:01]}  cxd4 {[%clk 0:02:56]} 4. Nxd4 {[%clk 0:03:02]}  Nf6 {[%clk 0:02:55]} 5. Nc3 {[%clk 0:03:02]}  e5 {[%clk 0:02:47]} 6. Ndb5 {[%clk 0:03:02]}  d6 {[%clk 0:02:46]} 7. Bg5 {[%clk 0:03:02]}  a6 {[%clk 0:02:41]} 8. Bxf6 {[%clk 0:03:02]}  gxf6 {[%clk 0:02:37]} 9. Na3 {[%clk 0:03:02]}  b5 {[%clk 0:02:37]} 10. Nd5 {[%clk 0:03:02]}  f5 {[%clk 0:02:33]} 11. Bd3 {[%clk 0:03:02]}  Be6 {[%clk 0:02:05]} 12. c4 {[%clk 0:03:02]}  b4 {[%clk 0:02:00]} 13. Nc2 {[%clk 0:03:02]}  a5 {[%clk 0:02:00]} 14. exf5 {[%clk 0:03:02]}  Bxd5 {[%clk 0:01:53]} 15. cxd5 {[%clk 0:03:02]}  Nb8 {[%clk 0:01:52]} 16. Ne3 {[%clk 0:02:54]}  Bh6 {[%clk 0:01:43]} 17. Ng4 {[%clk 0:02:34]}  Bg5 {[%clk 0:01:33]} 18. h4 {[%clk 0:02:34]}  Bxh4 {[%clk 0:01:22]} 19. Bb5+ {[%clk 0:02:34]}  Kf8 {[%clk 0:01:22]} 20. Rc1 {[%clk 0:02:19]}  Nd7 {[%clk 0:00:42]} 21. Bxd7 {[%clk 0:02:18]}  Bg5 {[%clk 0:00:39]} 22. Bc6 {[%clk 0:02:11]}  Bxc1 {[%clk 0:00:34]} 23. Qxc1 {[%clk 0:02:07]}  Rc8 {[%clk 0:00:22]} 24. Qh6+ {[%clk 0:02:06]}  Ke7 {[%clk 0:00:22]} 25. Qf6+ {[%clk 0:02:05]}  Kf8 {[%clk 0:00:19]} 26. Qh6+ {[%clk 0:01:57]}  Ke7 {[%clk 0:00:18]} 27. f6# {[%clk 0:01:57]} 1-0


[Site "https://www.chess.com"]

[Event "Titled Tuesday Blitz February 07 Early 2023"]
[White "Gharamian, Tigran"]
[Black "Bowden, Karl"]
[WhiteFideId "13301527"]
[BlackFideId "400548"]
[WhiteElo "2601"]
[BlackElo "2348"]
[Result "0-1"]
[Round "05"]
[TimeControl "180+2"]
[Date "2023.02.07"]
[WhiteClock "0:00:21"]
[BlackClock "0:00:34"]

1. d4 {[%clk 0:02:56]}  Nf6 {[%clk 0:02:59]} 2. c4 {[%clk 0:02:56]}  c5 {[%clk 0:02:59]} 3. d5 {[%clk 0:02:56]}  Ne4 {[%clk 0:03:00]} 4. Qc2 {[%clk 0:02:50]}  Qa5+ {[%clk 0:03:00]} 5. Nd2 {[%clk 0:02:48]}  Nd6 {[%clk 0:03:00]} 6. Nf3 {[%clk 0:02:46]}  g6 {[%clk 0:02:59]} 7. e4 {[%clk 0:02:43]}  Bg7 {[%clk 0:02:59]} 8. Bd3 {[%clk 0:02:40]}  Na6 {[%clk 0:02:59]} 9. O-O {[%clk 0:02:34]}  Nb4 {[%clk 0:02:58]} 10. Qb1 {[%clk 0:02:32]}  Nxd3 {[%clk 0:02:47]} 11. Qxd3 {[%clk 0:02:33]}  O-O {[%clk 0:02:44]} 12. a3 {[%clk 0:02:17]}  b5 {[%clk 0:02:39]} 13. cxb5 {[%clk 0:01:33]}  Qxb5 {[%clk 0:02:26]} 14. Qc2 {[%clk 0:01:28]}  Ba6 {[%clk 0:02:21]} 15. Re1 {[%clk 0:01:21]}  Rab8 {[%clk 0:02:01]} 16. Rb1 {[%clk 0:01:09]}  Rfc8 {[%clk 0:01:41]} 17. Re3 {[%clk 0:01:05]}  Nc4 {[%clk 0:00:54]} 18. Rb3 {[%clk 0:01:01]}  Qa4 {[%clk 0:00:54]} 19. Ne1 {[%clk 0:00:41]}  Nxd2 {[%clk 0:00:43]} 20. Qxc5 {[%clk 0:00:21]}  Nxb3 {[%clk 0:00:34]} 0-1


[Site "https://www.chess.com"]

[Event "Titled Tuesday Blitz February 07 Early 2023"]
[White "Dzhaparov, Medet"]
[Black "Rottenwohrer Suarez, Juan"]
[WhiteFideId "13803689"]
[BlackFideId "32068182"]
[WhiteElo "1578"]
[BlackElo "2265"]
[Result "0-1"]
[Round "05"]
[TimeControl "180+2"]
[Date "2023.02.07"]
[WhiteClock "0:00:14"]
[BlackClock "0:00:47"]

1. e4 {[%clk 0:03:00]}  c5 {[%clk 0:02:59]} 2. Nf3 {[%clk 0:02:59]}  g6 {[%clk 0:03:00]} 3. d4 {[%clk 0:02:59]}  cxd4 {[%clk 0:03:00]} 4. Nxd4 {[%clk 0:02:57]}  Nc6 {[%clk 0:03:01]} 5. Nc3 {[%clk 0:02:56]}  Bg7 {[%clk 0:03:01]} 6. Be3 {[%clk 0:02:54]}  Nf6 {[%clk 0:03:01]} 7. Bc4 {[%clk 0:02:52]}  O-O {[%clk 0:03:01]} 8. O-O {[%clk 0:02:51]}  Nxe4 {[%clk 0:03:01]} 9. Nxe4 {[%clk 0:02:50]}  d5 {[%clk 0:03:01]} 10. Bxd5 {[%clk 0:02:51]}  Qxd5 {[%clk 0:03:00]} 11. Nc3 {[%clk 0:02:51]}  Qc4 {[%clk 0:02:58]} 12. Nxc6 {[%clk 0:02:51]}  bxc6 {[%clk 0:02:59]} 13. Bd2 {[%clk 0:02:50]}  Rd8 {[%clk 0:02:53]} 14. Qe1 {[%clk 0:02:36]}  Bf5 {[%clk 0:02:51]} 15. Rc1 {[%clk 0:02:29]}  Rab8 {[%clk 0:02:43]} 16. b3 {[%clk 0:02:27]}  Qc5 {[%clk 0:02:43]} 17. Na4 {[%clk 0:02:22]}  Qa3 {[%clk 0:02:40]} 18. Bc3 {[%clk 0:02:20]}  Bh6 {[%clk 0:02:35]} 19. Ra1 {[%clk 0:02:08]}  Rd5 {[%clk 0:02:07]} 20. Rd1 {[%clk 0:01:27]}  Rbd8 {[%clk 0:01:59]} 21. Rxd5 {[%clk 0:01:24]}  cxd5 {[%clk 0:01:48]} 22. Qe2 {[%clk 0:01:22]}  Bf8 {[%clk 0:01:31]} 23. Qe5 {[%clk 0:00:37]}  f6 {[%clk 0:01:29]} 24. Qd4 {[%clk 0:00:35]}  Qxa2 {[%clk 0:01:21]} 25. Rc1 {[%clk 0:00:15]}  Bxc2 {[%clk 0:01:07]} 26. Ra1 {[%clk 0:00:14]}  Qxb3 {[%clk 0:01:05]} 27. Qxa7 {[%clk 0:00:14]}  Qc4 {[%clk 0:00:56]} 28. Qe3 {[%clk 0:00:14]}  d4 {[%clk 0:00:50]} 29. Qd2 {[%clk 0:00:14]}  Bxa4 {[%clk 0:00:47]} 0-1


[Site "https://www.chess.com"]

[Event "Titled Tuesday Blitz February 07 Early 2023"]
[White "Sailer, Mike"]
[Black "Nikologorsky, Matfei"]
[WhiteFideId "2012901"]
[BlackFideId "24102474"]
[WhiteElo "2109"]
[BlackElo "2182"]
[Result "0-1"]
[Round "05"]
[TimeControl "180+2"]
[Date "2023.02.07"]
[WhiteClock "0:00:01"]
[BlackClock "0:00:31"]

1. Nf3 {[%clk 0:03:00]}  d5 {[%clk 0:02:58]} 2. c4 {[%clk 0:02:58]}  e6 {[%clk 0:02:52]} 3. b3 {[%clk 0:02:54]}  Nf6 {[%clk 0:02:52]} 4. Bb2 {[%clk 0:02:53]}  b6 {[%clk 0:02:51]} 5. e3 {[%clk 0:02:48]}  Bb7 {[%clk 0:02:51]} 6. Be2 {[%clk 0:02:41]}  Be7 {[%clk 0:02:51]} 7. O-O {[%clk 0:02:35]}  O-O {[%clk 0:02:51]} 8. d4 {[%clk 0:02:32]}  Nbd7 {[%clk 0:02:47]} 9. Nbd2 {[%clk 0:02:30]}  Ne4 {[%clk 0:02:46]} 10. Nxe4 {[%clk 0:02:29]}  dxe4 {[%clk 0:02:46]} 11. Nd2 {[%clk 0:02:30]}  f5 {[%clk 0:02:42]} 12. f3 {[%clk 0:02:25]}  exf3 {[%clk 0:02:41]} 13. Bxf3 {[%clk 0:02:24]}  Bxf3 {[%clk 0:02:31]} 14. Qxf3 {[%clk 0:02:17]}  Nf6 {[%clk 0:02:24]} 15. Rae1 {[%clk 0:02:04]}  c5 {[%clk 0:02:13]} 16. d5 {[%clk 0:01:37]}  exd5 {[%clk 0:02:11]} 17. Qxf5 {[%clk 0:01:37]}  dxc4 {[%clk 0:01:46]} 18. Nxc4 {[%clk 0:01:34]}  Qd7 {[%clk 0:01:45]} 19. e4 {[%clk 0:01:12]}  Qxf5 {[%clk 0:01:14]} 20. exf5 {[%clk 0:01:11]}  Rfe8 {[%clk 0:01:12]} 21. Re6 {[%clk 0:01:08]}  Bf8 {[%clk 0:01:03]} 22. Bxf6 {[%clk 0:01:04]}  gxf6 {[%clk 0:00:59]} 23. Rxf6 {[%clk 0:01:01]}  Re2 {[%clk 0:01:00]} 24. Rc6 {[%clk 0:00:48]}  Rxa2 {[%clk 0:00:52]} 25. Ne5 {[%clk 0:00:41]}  Re8 {[%clk 0:00:50]} 26. Re1 {[%clk 0:00:17]}  Rd8 {[%clk 0:00:48]} 27. Nf3 {[%clk 0:00:08]}  Bd6 {[%clk 0:00:42]} 28. f6 {[%clk 0:00:08]}  Kf7 {[%clk 0:00:41]} 29. Ng5+ {[%clk 0:00:04]}  Kg6 {[%clk 0:00:38]} 30. Ne6 {[%clk 0:00:03]}  Rd7 {[%clk 0:00:39]} 31. Rxd6 {[%clk 0:00:01]}  Rxd6 {[%clk 0:00:39]} 32. Rf1 {[%clk 0:00:01]}  Rdd2 {[%clk 0:00:31]} 0-1


[Site "https://www.chess.com"]

[Event "Titled Tuesday Blitz February 07 Early 2023"]
[White "Sputnik-11"]
[Black "Magallanes, Rey Jomar"]
[BlackFideId "5205948"]
[WhiteElo "2381"]
[BlackElo "2052"]
[Result "1-0"]
[Round "05"]
[TimeControl "180+2"]
[Date "2023.02.07"]
[WhiteClock "0:00:03"]
[BlackClock "0:00:03"]

1. Nf3 {[%clk 0:03:00]}  Nf6 {[%clk 0:02:59]} 2. c4 {[%clk 0:02:58]}  g6 {[%clk 0:02:59]} 3. Nc3 {[%clk 0:02:58]}  Bg7 {[%clk 0:02:59]} 4. g3 {[%clk 0:02:57]}  O-O {[%clk 0:02:58]} 5. Bg2 {[%clk 0:02:58]}  d6 {[%clk 0:02:59]} 6. O-O {[%clk 0:02:57]}  c6 {[%clk 0:02:58]} 7. Rb1 {[%clk 0:02:56]}  a5 {[%clk 0:02:55]} 8. a3 {[%clk 0:02:54]}  e5 {[%clk 0:02:52]} 9. d3 {[%clk 0:02:50]}  Re8 {[%clk 0:02:51]} 10. b4 {[%clk 0:02:49]}  axb4 {[%clk 0:02:47]} 11. axb4 {[%clk 0:02:49]}  Na6 {[%clk 0:02:45]} 12. b5 {[%clk 0:02:37]}  Nc5 {[%clk 0:02:38]} 13. Be3 {[%clk 0:02:36]}  Nfd7 {[%clk 0:02:32]} 14. Nd2 {[%clk 0:02:24]}  Qc7 {[%clk 0:02:22]} 15. Nb3 {[%clk 0:02:06]}  Nxb3 {[%clk 0:02:10]} 16. Qxb3 {[%clk 0:02:07]}  c5 {[%clk 0:01:46]} 17. b6 {[%clk 0:01:56]}  Qd8 {[%clk 0:01:41]} 18. Nd5 {[%clk 0:01:50]}  Rf8 {[%clk 0:01:25]} 19. Ra1 {[%clk 0:01:17]}  Rb8 {[%clk 0:01:24]} 20. Ra7 {[%clk 0:01:08]}  h6 {[%clk 0:01:21]} 21. Nc7 {[%clk 0:01:02]}  Nf6 {[%clk 0:01:16]} 22. h3 {[%clk 0:00:52]}  Ne8 {[%clk 0:00:53]} 23. Nd5 {[%clk 0:00:48]}  Bd7 {[%clk 0:00:52]} 24. Nc3 {[%clk 0:00:41]}  Bc6 {[%clk 0:00:44]} 25. Bxc6 {[%clk 0:00:36]}  bxc6 {[%clk 0:00:45]} 26. b7 {[%clk 0:00:29]}  Nf6 {[%clk 0:00:39]} 27. Rfa1 {[%clk 0:00:22]}  Qc7 {[%clk 0:00:35]} 28. Na4 {[%clk 0:00:15]}  e4 {[%clk 0:00:20]} 29. Bd2 {[%clk 0:00:11]}  Nh5 {[%clk 0:00:12]} 30. Bc3 {[%clk 0:00:06]}  exd3 {[%clk 0:00:09]} 31. exd3 {[%clk 0:00:06]}  Qd7 {[%clk 0:00:09]} 32. Kg2 {[%clk 0:00:04]}  Bxc3 {[%clk 0:00:08]} 33. Nxc3 {[%clk 0:00:03]}  Ng7 {[%clk 0:00:08]} 34. Ne4 {[%clk 0:00:03]}  Qe6 {[%clk 0:00:05]} 35. Ra8 {[%clk 0:00:03]}  Nf5 {[%clk 0:00:01]} 36. Rxb8 {[%clk 0:00:02]}  Rxb8 {[%clk 0:00:02]} 37. Ra8 {[%clk 0:00:03]}  Qe8 {[%clk 0:00:03]} 38. Rxb8 {[%clk 0:00:03]}  Qxb8 {[%clk 0:00:03]} 39. Qb6 {[%clk 0:00:03]} 1-0


[Site "https://www.chess.com"]

[Event "Titled Tuesday Blitz February 07 Early 2023"]
[White "Buscar, Michael"]
[Black "Fabris, Alberto"]
[WhiteFideId "2603616"]
[BlackFideId "801348"]
[WhiteElo "2041"]
[BlackElo "2230"]
[Result "1/2-1/2"]
[Round "05"]
[TimeControl "180+2"]
[Date "2023.02.07"]
[WhiteClock "0:00:05"]
[BlackClock "0:00:03"]

1. d4 {[%clk 0:02:47]}  Nf6 {[%clk 0:02:59]} 2. c4 {[%clk 0:02:47]}  e6 {[%clk 0:02:59]} 3. Nc3 {[%clk 0:02:37]}  Bb4 {[%clk 0:02:59]} 4. e3 {[%clk 0:02:36]}  O-O {[%clk 0:02:58]} 5. Bd3 {[%clk 0:02:37]}  b6 {[%clk 0:02:58]} 6. Ne2 {[%clk 0:02:36]}  Bb7 {[%clk 0:02:58]} 7. Qc2 {[%clk 0:02:34]}  d5 {[%clk 0:02:53]} 8. O-O {[%clk 0:02:34]}  Nbd7 {[%clk 0:02:49]} 9. f3 {[%clk 0:02:31]}  c5 {[%clk 0:02:47]} 10. cxd5 {[%clk 0:02:26]}  exd5 {[%clk 0:02:45]} 11. a3 {[%clk 0:02:23]}  Bxc3 {[%clk 0:02:43]} 12. bxc3 {[%clk 0:02:22]}  Re8 {[%clk 0:02:39]} 13. Ng3 {[%clk 0:02:18]}  Nf8 {[%clk 0:02:37]} 14. Qf2 {[%clk 0:02:00]}  Ne6 {[%clk 0:02:26]} 15. Nf5 {[%clk 0:01:58]}  g6 {[%clk 0:02:18]} 16. Nh6+ {[%clk 0:01:46]}  Kg7 {[%clk 0:02:18]} 17. Ng4 {[%clk 0:01:44]}  Nxg4 {[%clk 0:02:17]} 18. fxg4 {[%clk 0:01:44]}  Rf8 {[%clk 0:02:07]} 19. h4 {[%clk 0:01:28]}  Qe7 {[%clk 0:02:04]} 20. Bd2 {[%clk 0:01:20]}  f6 {[%clk 0:01:59]} 21. Rae1 {[%clk 0:01:18]}  Nc7 {[%clk 0:01:51]} 22. h5 {[%clk 0:01:11]}  Rae8 {[%clk 0:01:47]} 23. dxc5 {[%clk 0:00:48]}  bxc5 {[%clk 0:01:45]} 24. c4 {[%clk 0:00:49]}  Qe6 {[%clk 0:01:42]} 25. cxd5 {[%clk 0:00:29]}  Bxd5 {[%clk 0:01:39]} 26. Bc3 {[%clk 0:00:29]}  Qxg4 {[%clk 0:01:24]} 27. Bxf6+ {[%clk 0:00:27]}  Kg8 {[%clk 0:01:23]} 28. hxg6 {[%clk 0:00:13]}  hxg6 {[%clk 0:01:19]} 29. e4 {[%clk 0:00:13]}  Bxe4 {[%clk 0:01:07]} 30. Bxe4 {[%clk 0:00:13]}  Rxe4 {[%clk 0:01:06]} 31. Rxe4 {[%clk 0:00:13]}  Qxe4 {[%clk 0:01:06]} 32. Qxc5 {[%clk 0:00:14]}  Ne6 {[%clk 0:00:59]} 33. Qxa7 {[%clk 0:00:13]}  Rf7 {[%clk 0:00:41]} 34. Qb8+ {[%clk 0:00:11]}  Nf8 {[%clk 0:00:41]} 35. Qb6 {[%clk 0:00:10]}  Qa4 {[%clk 0:00:23]} 36. Bb2 {[%clk 0:00:05]}  Rxf1+ {[%clk 0:00:20]} 37. Kxf1 {[%clk 0:00:06]}  Qc4+ {[%clk 0:00:20]} 38. Kg1 {[%clk 0:00:06]}  Ne6 {[%clk 0:00:17]} 39. Qb8+ {[%clk 0:00:04]}  Kf7 {[%clk 0:00:16]} 40. Qe5 {[%clk 0:00:04]}  Ke8 {[%clk 0:00:14]} 41. Qh8+ {[%clk 0:00:04]}  Kd7 {[%clk 0:00:14]} 42. Qe5 {[%clk 0:00:05]}  g5 {[%clk 0:00:13]} 43. Qc3 {[%clk 0:00:03]}  Qa6 {[%clk 0:00:09]} 44. Qd2+ {[%clk 0:00:03]}  Kc6 {[%clk 0:00:09]} 45. Qc3+ {[%clk 0:00:03]}  Kd5 {[%clk 0:00:08]} 46. Qe5+ {[%clk 0:00:03]}  Kc4 {[%clk 0:00:07]} 47. Qc3+ {[%clk 0:00:02]}  Kb5 {[%clk 0:00:07]} 48. Qd3+ {[%clk 0:00:02]}  Kb6 {[%clk 0:00:05]} 49. Qxa6+ {[%clk 0:00:03]}  Kxa6 {[%clk 0:00:06]} 50. Kf2 {[%clk 0:00:04]}  Kb5 {[%clk 0:00:04]} 51. Kg3 {[%clk 0:00:04]}  Nf4 {[%clk 0:00:04]} 52. Kg4 {[%clk 0:00:03]}  Nxg2 {[%clk 0:00:04]} 53. Kxg5 {[%clk 0:00:04]}  Ka4 {[%clk 0:00:03]} 54. Kf5 {[%clk 0:00:04]}  Ne3+ {[%clk 0:00:03]} 55. Ke4 {[%clk 0:00:04]}  Nc4 {[%clk 0:00:03]} 56. Bc1 {[%clk 0:00:05]}  Nxa3 {[%clk 0:00:03]} 1/2-1/2


[Site "https://www.chess.com"]

[Event "Titled Tuesday Blitz February 07 Early 2023"]
[White "Bashirli, Saadat"]
[Black "Womacka, Mathias"]
[WhiteFideId "13429990"]
[BlackFideId "4611390"]
[WhiteElo "1571"]
[BlackElo "2396"]
[Result "0-1"]
[Round "05"]
[TimeControl "180+2"]
[Date "2023.02.07"]
[WhiteClock "0:00:49"]
[BlackClock "0:00:07"]

1. e4 {[%clk 0:03:00]}  c5 {[%clk 0:02:51]} 2. Nf3 {[%clk 0:03:01]}  d6 {[%clk 0:02:49]} 3. Bb5+ {[%clk 0:03:01]}  Nd7 {[%clk 0:02:44]} 4. O-O {[%clk 0:02:58]}  a6 {[%clk 0:02:43]} 5. Bxd7+ {[%clk 0:02:56]}  Bxd7 {[%clk 0:02:44]} 6. Re1 {[%clk 0:02:56]}  Nf6 {[%clk 0:02:41]} 7. c3 {[%clk 0:02:56]}  Bc6 {[%clk 0:02:41]} 8. e5 {[%clk 0:02:53]}  dxe5 {[%clk 0:02:40]} 9. Nxe5 {[%clk 0:02:52]}  Qc7 {[%clk 0:02:35]} 10. Qb3 {[%clk 0:02:48]}  e6 {[%clk 0:02:35]} 11. Nxc6 {[%clk 0:02:40]}  Qxc6 {[%clk 0:02:35]} 12. d3 {[%clk 0:02:39]}  Be7 {[%clk 0:02:30]} 13. Bg5 {[%clk 0:02:39]}  O-O {[%clk 0:02:30]} 14. Nd2 {[%clk 0:02:33]}  Rfd8 {[%clk 0:02:28]} 15. Qc2 {[%clk 0:02:28]}  Qd5 {[%clk 0:02:26]} 16. Bxf6 {[%clk 0:02:23]}  Bxf6 {[%clk 0:02:27]} 17. Re3 {[%clk 0:02:23]}  Bg5 {[%clk 0:02:05]} 18. Rg3 {[%clk 0:02:20]}  Bf4 {[%clk 0:02:03]} 19. Rf3 {[%clk 0:02:14]}  Bxd2 {[%clk 0:01:58]} 20. Qxd2 {[%clk 0:02:15]}  Rd7 {[%clk 0:01:48]} 21. Rd1 {[%clk 0:02:13]}  Rad8 {[%clk 0:01:48]} 22. h3 {[%clk 0:02:08]}  Qxa2 {[%clk 0:01:46]} 23. Rg3 {[%clk 0:02:05]}  Qd5 {[%clk 0:01:44]} 24. Rg5 {[%clk 0:02:02]}  Qxd3 {[%clk 0:01:26]} 25. Qxd3 {[%clk 0:01:54]}  Rxd3 {[%clk 0:01:25]} 26. Rxd3 {[%clk 0:01:54]}  Rxd3 {[%clk 0:01:25]} 27. Rxc5 {[%clk 0:01:55]}  g6 {[%clk 0:01:19]} 28. Rc7 {[%clk 0:01:53]}  b5 {[%clk 0:01:16]} 29. Rc6 {[%clk 0:01:47]}  a5 {[%clk 0:01:10]} 30. Ra6 {[%clk 0:01:42]}  a4 {[%clk 0:01:07]} 31. Rb6 {[%clk 0:01:38]}  Rd1+ {[%clk 0:00:51]} 32. Kh2 {[%clk 0:01:37]}  Rd2 {[%clk 0:00:52]} 33. Rxb5 {[%clk 0:01:37]}  Rxf2 {[%clk 0:00:52]} 34. Kg3 {[%clk 0:01:37]}  Rc2 {[%clk 0:00:52]} 35. Rb4 {[%clk 0:01:37]}  a3 {[%clk 0:00:51]} 36. bxa3 {[%clk 0:01:31]}  Rxc3+ {[%clk 0:00:51]} 37. Kf4 {[%clk 0:01:31]}  Rxa3 {[%clk 0:00:50]} 38. Ke5 {[%clk 0:01:31]}  Kg7 {[%clk 0:00:50]} 39. Rb7 {[%clk 0:01:31]}  h5 {[%clk 0:00:44]} 40. Kf4 {[%clk 0:01:28]}  Kf6 {[%clk 0:00:34]} 41. Rb6 {[%clk 0:01:21]}  g5+ {[%clk 0:00:29]} 42. Ke4 {[%clk 0:01:21]}  Ra2 {[%clk 0:00:22]} 43. g4 {[%clk 0:01:14]}  hxg4 {[%clk 0:00:20]} 44. hxg4 {[%clk 0:01:15]}  Rf2 {[%clk 0:00:20]} 45. Ke3 {[%clk 0:01:01]}  Rf4 {[%clk 0:00:19]} 46. Rb2 {[%clk 0:01:01]}  Rxg4 {[%clk 0:00:20]} 47. Rf2+ {[%clk 0:01:02]}  Rf4 {[%clk 0:00:20]} 48. Rg2 {[%clk 0:01:02]}  Kf5 {[%clk 0:00:20]} 49. Rd2 {[%clk 0:01:00]}  f6 {[%clk 0:00:21]} 50. Ra2 {[%clk 0:00:59]}  Rb4 {[%clk 0:00:20]} 51. Ra5+ {[%clk 0:01:00]}  Kg6 {[%clk 0:00:18]} 52. Kf3 {[%clk 0:01:01]}  Rb3+ {[%clk 0:00:17]} 53. Ke4 {[%clk 0:01:00]}  g4 {[%clk 0:00:17]} 54. Kf4 {[%clk 0:00:59]}  g3 {[%clk 0:00:16]} 55. Ra2 {[%clk 0:00:59]}  Kh5 {[%clk 0:00:14]} 56. Rg2 {[%clk 0:00:59]}  Kh4 {[%clk 0:00:14]} 57. Rg1 {[%clk 0:00:58]}  Kh3 {[%clk 0:00:14]} 58. Rh1+ {[%clk 0:00:58]}  Kg2 {[%clk 0:00:15]} 59. Rc1 {[%clk 0:00:58]}  Kh2 {[%clk 0:00:15]} 60. Rc2+ {[%clk 0:00:56]}  g2 {[%clk 0:00:12]} 61. Ra2 {[%clk 0:00:57]}  Kh1 {[%clk 0:00:11]} 62. Ke4 {[%clk 0:00:55]}  g1=Q {[%clk 0:00:11]} 63. Rf2 {[%clk 0:00:50]}  Qg4+ {[%clk 0:00:08]} 64. Rf4 {[%clk 0:00:49]}  Rb4+ {[%clk 0:00:08]} 65. Kd3 {[%clk 0:00:49]}  Qxf4 {[%clk 0:00:08]} 66. Kc3 {[%clk 0:00:49]}  Qd4+ {[%clk 0:00:07]} 0-1


[Site "https://www.chess.com"]